bitfinex-derivatives/quotes_SOLF0:USTF0_20241107
["timestamp","ask_amount","ask_price","bid_price","bid_amount"]
[1730952938260,2.6334,189.75,189.72,6.48229036]
[1730952938461,2.6334,189.75,189.7,6.48229036]
[1730952939569,6.48229036,189.75,189.69,5.9741]
[1730952939768,6.48229036,189.74,189.69,3.34]
[1730952939974,6.48229036,189.77,189.7,6.48229036]
[1730952940269,2.633,189.77,189.72,6.48229036]
[1730952940470,1.2949,189.8,189.74,6.48229036]
[1730952941073,3.9275,189.8,189.74,6.48229036]
[1730952941465,3.9275,189.8,189.76,6.48229036]
[1730952945476,3.9275,189.8,189.77,6.48229036]
[1730952947485,2.6328,189.79,189.75,3.34]
[1730952947780,2.6328,189.79,189.77,6.48229036]
[1730952947980,1.2949,189.8,189.75,3.34]
[1730952948286,1.2949,189.8,189.76,6.48229036]
[1730952948991,1.2949,189.8,189.75,3.34]
[1730952949183,1.2949,189.8,189.77,6.48229036]
[1730952949777,3.9275,189.8,189.77,6.48229036]
[1730952950789,2.6326,189.8,189.77,6.48229036]
[1730952951886,2.5158,189.81,189.77,6.48229036]
[1730952952090,2.5158,189.81,189.79,6.48229036]
[1730952952488,5.1483,189.81,189.79,6.48229036]
[1730952952684,1.2482,189.86,189.79,6.48229036]
[1730952952886,9.01529036,189.85,189.79,6.48229036]
[1730952953090,2.6323,189.83,189.79,6.48229036]
[1730952953590,9.01529036,189.85,189.79,6.48229036]
[1730952954293,6.48229036,189.86,189.8,6.48229036]
[1730952954885,2.6322,189.83,189.8,6.48229036]
[1730952955487,2.5179,189.88,189.74,3.34]
[1730952955688,2.6316,189.87,189.82,6.48229036]
[1730952957088,2.6318,189.86,189.82,6.48229036]
[1730952958395,2.5179,189.88,189.82,6.48229036]
[1730952958589,2.5179,189.88,189.81,2.6324]
[1730952958792,2.6317,189.87,189.83,6.48229036]
[1730952958986,6.48229036,189.87,189.83,6.48229036]
[1730952960894,2.6318,189.86,189.83,6.48229036]
[1730952961491,2.6316,189.87,189.83,6.48229036]
[1730952963899,2.6319,189.85,189.8,5.9726]
[1730952964084,2.6319,189.85,189.81,6.48229036]
[1730952964495,6.48229036,189.83,189.7,4.10393076]
[1730952964701,2.6323,189.82,189.77,6.48229036]
[1730952965294,2.6323,189.82,189.77,9.11529036]
[1730952965494,2.6323,189.82,189.79,6.48229036]
[1730952967897,6.48229036,189.85,189.79,6.48229036]
[1730952968103,2.6323,189.82,189.79,6.48229036]
[1730952968996,2.6323,189.82,189.77,3.34]
[1730952969194,2.6323,189.82,189.8,6.48229036]
[1730952971799,2.6319,189.85,189.81,6.48229036]
[1730952972005,2.6319,189.85,189.77,3.34]
[1730952972006,2.6319,189.85,189.84,6.48229036]
[1730952972798,2.6319,189.85,189.8,2.6325]
[1730952973003,2.6319,189.85,189.82,6.48229036]
[1730952973311,9.00019036,189.88,189.82,6.48229036]
[1730952974603,6.48229036,189.86,189.82,6.48229036]
[1730952974804,2.6322,189.83,189.82,6.48229036]
[1730952975102,2.6322,189.83,189.8,6.48229036]
[1730952976808,2.6322,189.83,189.81,6.48229036]
[1730952977205,9.00019036,189.88,189.81,6.48229036]
[1730952977392,2.632,189.85,189.81,6.48229036]
[1730952980506,2.632,189.84,189.81,6.48229036]
[1730952982697,2.632,189.85,189.81,6.48229036]
[1730952983102,9.00019036,189.88,189.81,6.48229036]
[1730952984511,2.632,189.85,189.73,0.51675]
[1730952984710,2.632,189.85,189.79,9.11499036]
[1730952985602,2.632,189.85,189.8,6.48229036]
[1730952987003,2.6317,189.87,189.82,6.48229036]
[1730952987311,6.48229036,189.86,189.82,6.48229036]
[1730952987522,2.5179,189.88,189.82,6.48229036]
[1730952987703,6.48229036,189.87,189.82,6.48229036]
[1730952988212,2.6319,189.85,189.82,6.48229036]
[1730952991808,2.5179,189.88,189.84,6.48229036]
[1730952992714,5.1494,189.88,189.84,6.48229036]
[1730952993612,5.1494,189.88,189.84,9.11429036]
[1730952993919,1.2221,189.91,189.86,6.48229036]
[1730952995818,2.6314,189.89,189.86,6.48229036]
[1730952996516,6.48229036,189.9,189.8,3.32]
[1730952996822,6.48229036,189.88,189.83,6.48229036]
[1730952997012,6.48229036,189.88,189.8,3.32]
[1730952997211,1.2221,189.91,189.81,3.32]
[1730952997411,1.2221,189.91,189.81,9.80229036]
[1730952997617,6.48229036,189.87,189.81,9.80229036]
[1730952998322,6.48229036,189.88,189.82,6.48229036]
[1730952998723,2.6319,189.85,189.82,6.48229036]
[1730953000417,2.6318,189.87,189.82,6.48229036]
[1730953001019,2.6318,189.86,189.82,6.48229036]
[1730953002120,1.2221,189.91,189.84,9.11429036]
[1730953002121,7.70439036,189.91,189.84,9.11429036]
[1730953002824,2.6314,189.89,189.84,9.11429036]
[1730953003522,2.6314,189.89,189.85,2.6319]
[1730953003723,7.70439036,189.91,189.85,2.6319]
[1730953003724,2.6312,189.9,189.86,6.48229036]
[1730953005929,2.6314,189.89,189.86,6.48229036]
[1730953008431,2.6312,189.9,189.86,6.48229036]
[1730953009226,2.6311,189.91,189.87,6.48229036]
[1730953011318,6.48229036,189.92,189.87,6.48229036]
[1730953012721,2.6313,189.9,189.87,6.48229036]
[1730953012919,2.6313,189.9,189.85,2.6319]
[1730953013131,2.6313,189.9,189.87,6.48229036]
[1730953013528,2.6313,189.9,189.85,2.6319]
[1730953013729,2.6313,189.9,189.87,6.48229036]
[1730953014324,2.6311,189.91,189.87,9.11389036]
[1730953014932,2.6311,189.91,189.87,6.48229036]
[1730953015236,2.6312,189.9,189.85,2.6319]
[1730953015440,2.6312,189.9,189.86,6.48229036]
[1730953017132,2.6314,189.89,189.86,6.48229036]
[1730953018028,2.632,189.85,189.81,6.48229036]
[1730953019327,2.6321,189.84,189.79,2.6327]
[1730953019528,2.6321,189.84,189.78,3.32]
[1730953019529,6.48229036,189.85,189.78,3.32]
[1730953019733,6.48229036,189.83,189.78,6.48229036]
[1730953020627,6.48229036,189.83,189.75,24.08831653]
[1730953020827,2.6325,189.81,189.77,6.48229036]
[1730953021223,2.6325,189.81,189.76,2.633]
[1730953021428,2.6325,189.81,189.77,6.48229036]
[1730953021821,2.6326,189.8,189.76,2.633]
[1730953022030,2.6326,189.8,189.77,6.48229036]
[1730953022436,2.6326,189.8,189.76,2.633]
[1730953022736,2.6326,189.8,189.77,6.48229036]
[1730953023126,6.48229036,189.78,189.72,2.6337]
[1730953023335,6.48229036,189.76,189.66,37.94]
[1730953023531,6.48229036,189.76,189.7,6.48229036]
[1730953024332,2.6333,189.75,189.7,6.48229036]
[1730953024844,2.6329,189.78,189.74,6.48229036]
[1730953025028,2.5665,189.79,189.74,6.48229036]
[1730953025337,2.6329,189.78,189.74,6.48229036]
[1730953028039,2.6329,189.78,189.71,2.6337]
[1730953028331,2.6329,189.78,189.74,6.48229036]
[1730953031141,2.6331,189.77,189.75,6.48229036]
[1730953033339,6.48229036,189.78,189.66,0.46704]
[1730953033536,6.48229036,189.74,189.69,6.48229036]
[1730953034445,2.6337,189.73,189.69,6.48229036]
[1730953034842,2.6337,189.72,189.69,6.48229036]
[1730953035745,2.6337,189.72,189.7,6.48229036]
[1730953035934,2.5665,189.79,189.7,6.48229036]
[1730953036144,2.5665,189.79,189.74,6.48229036]
[1730953036638,2.6333,189.76,189.74,6.48229036]
[1730953037347,2.633,189.77,189.74,6.48229036]
[1730953039249,2.5665,189.79,189.76,6.48229036]
[1730953040148,2.5665,189.79,189.71,3.32]
[1730953040448,2.5665,189.79,189.75,6.48229036]
[1730953041042,2.6329,189.78,189.75,6.48229036]
[1730953041343,6.48229036,189.78,189.71,3.32]
[1730953041536,2.6334,189.75,189.72,6.48229036]
[1730953043144,2.6334,189.74,189.72,6.48229036]
[1730953043650,9.11599036,189.73,189.68,3.32]
[1730953043848,9.11599036,189.73,189.67,6.48229036]
[1730953044342,9.11599036,189.73,189.67,9.11669036]
[1730953044745,3.32,189.77,189.71,6.48229036]
[1730953044746,2.6334,189.75,189.71,6.48229036]
[1730953044945,2.6334,189.75,189.72,6.48229036]
[1730953045643,5.953,189.77,189.74,6.48229036]
[1730953045842,2.5665,189.79,189.74,6.48229036]
[1730953046048,2.5665,189.79,189.76,6.48229036]
[1730953046349,5.1992,189.79,189.76,6.48229036]
[1730953046557,5.1992,189.79,189.7,3.32]
[1730953046558,1.1962,189.84,189.78,6.48229036]
[1730953046740,1.1962,189.84,189.8,6.48229036]
[1730953047448,3.8284,189.84,189.8,6.48229036]
[1730953047643,2.4863,189.87,189.82,6.48229036]
[1730953047855,2.4863,189.87,189.84,6.48229036]
[1730953048042,5.1179,189.87,189.84,6.48229036]
[1730953048749,5.1179,189.87,189.8,2.6325]
[1730953048954,2.6321,189.84,189.78,2.6329]
[1730953049251,6.48229036,189.84,189.78,6.48229036]
[1730953049441,6.48229036,189.82,189.77,6.48229036]
[1730953049647,2.6325,189.81,189.77,6.48229036]
[1730953051560,6.48229036,189.82,189.78,6.48229036]
[1730953051561,9.11459036,189.82,189.78,6.48229036]
[1730953051853,9.11459036,189.82,189.79,6.48229036]
[1730953051854,2.6323,189.82,189.79,6.48229036]
[1730953053149,2.6322,189.83,189.79,6.48229036]
[1730953053459,6.48229036,189.84,189.79,6.48229036]
[1730953054852,2.6324,189.82,189.79,6.48229036]
[1730953056268,2.6324,189.82,189.76,2.6331]
[1730953056566,2.6324,189.82,189.78,6.48229036]
[1730953056762,2.6324,189.82,189.76,2.6331]
[1730953056968,2.6324,189.82,189.79,6.48229036]
[1730953059362,6.48229036,189.84,189.79,6.48229036]
[1730953060372,2.6324,189.82,189.79,6.48229036]
[1730953068272,2.632,189.85,189.8,6.48229036]
[1730953068666,2.4863,189.87,189.82,6.48229036]
[1730953069075,2.6318,189.86,189.82,6.48229036]
[1730953069272,6.48229036,189.86,189.81,6.48229036]
[1730953069473,6.48229036,189.86,189.78,3.3]
[1730953069474,6.48229036,189.85,189.79,6.48229036]
[1730953070072,2.6322,189.83,189.79,6.48229036]
[1730953071380,2.6324,189.82,189.79,6.48229036]
[1730953072270,2.6324,189.82,189.74,3.3]
[1730953072271,2.6324,189.82,189.77,6.48229036]
[1730953072471,6.48229036,189.8,189.74,3.3]
[1730953072673,2.6328,189.79,189.74,6.48229036]
[1730953072976,3.3,189.84,189.73,6.48229036]
[1730953072977,6.48229036,189.78,189.73,6.48229036]
[1730953073175,9.11549036,189.76,189.72,4.11383163]
[1730953077086,2.6332,189.76,189.72,10.59612199]
[1730953078479,2.6332,189.76,189.72,6.48229036]
[1730953078782,2.6329,189.78,189.75,6.48229036]
[1730953079083,2.5742,189.79,189.75,6.48229036]
[1730953079884,5.207,189.79,189.75,6.48229036]
[1730953086089,5.207,189.79,189.74,6.48229036]
[1730953086687,6.48229036,189.78,189.72,6.48229036]
[1730953086894,6.48229036,189.77,189.71,0.49336]
[1730953087794,2.6332,189.76,189.71,0.49336]
[1730953088091,6.48229036,189.77,189.71,0.49336]
[1730953088286,6.48229036,189.77,189.71,6.97565036]
[1730953088487,2.6333,189.75,189.71,6.97565036]
[1730953089086,2.6333,189.75,189.71,0.49336]
[1730953091090,2.6333,189.75,189.71,6.97565036]
[1730953092592,2.6334,189.75,189.71,6.97565036]
[1730953092792,6.48229036,189.77,189.71,6.97565036]
[1730953093892,2.6335,189.74,189.71,6.97565036]
[1730953094298,2.5742,189.79,189.73,6.48229036]
[1730953094495,6.48229036,189.78,189.73,6.48229036]
[1730953095690,2.5742,189.79,189.71,0.49336]
[1730953095691,6.48229036,189.76,189.71,6.48229036]
[1730953095887,6.48229036,189.75,189.68,6.48229036]
[1730953096089,6.48229036,189.71,189.6,1.31817927]
[1730953096291,6.48229036,189.68,189.59,3.28]
[1730953096492,6.48229036,189.68,189.62,6.48229036]
[1730953097593,6.48229036,189.68,189.58,3.28]
[1730953097795,2.6345,189.67,189.62,6.48229036]
[1730953098404,2.6346,189.66,189.61,6.48229036]
[1730953098605,9.11689036,189.66,189.61,6.48229036]
[1730953098800,3.28,189.67,189.63,0.45534]
[1730953099003,3.28,189.67,189.49,2.57245283]
[1730953099004,6.48229036,189.61,189.49,2.57245283]
[1730953099305,2.62658521,189.63,189.4,14.11433821]
[1730953099496,3.28,189.67,189.52,6.48229036]
[1730953099497,2.636,189.56,189.52,6.48229036]
[1730953099803,6.48229036,189.59,189.52,6.48229036]
[1730953100300,2.3956,189.6,189.54,6.48229036]
[1730953101309,6.48229036,189.59,189.5,2.6367]
[1730953101605,6.48229036,189.59,189.53,6.48229036]
[1730953101814,9.11789036,189.59,189.53,6.48229036]
[1730953102307,2.6358,189.58,189.48,5.88706454]
[1730953102607,6.48229036,189.59,189.53,6.48229036]
[1730953103005,2.3956,189.6,189.53,6.48229036]
[1730953103306,6.48229036,189.58,189.53,6.48229036]
[1730953104097,6.48229036,189.58,189.5,2.6367]
[1730953104296,6.48229036,189.58,189.53,6.48229036]
[1730953105010,6.48229036,189.58,189.5,2.6367]
[1730953105011,9.11809036,189.58,189.5,2.6367]
[1730953105405,9.11809036,189.58,189.52,6.48229036]
[1730953105705,9.11819036,189.57,189.42,5.4009072]
[1730953105901,9.11819036,189.57,189.41,0.4486]
[1730953105902,6.48229036,189.57,189.43,3.28]
[1730953106207,6.48229036,189.57,189.5,6.48229036]
[1730953106807,2.6361,189.55,189.47,2.6371]
[1730953107002,6.48229036,189.56,189.45,3.28]
[1730953107306,2.3956,189.6,189.41,0.4486]
[1730953107307,3.28,189.57,189.41,0.4486]
[1730953107510,6.48229036,189.48,189.42,6.48229036]
[1730953107704,3.28,189.57,189.44,6.48229036]
[1730953107705,5.86003305,189.57,189.44,6.48229036]
[1730953107904,6.48229036,189.5,189.45,6.48229036]
[1730953108707,2.3956,189.6,189.4,3.28]
[1730953108708,3.28,189.55,189.47,6.48229036]
[1730953108911,6.48229036,189.53,189.47,6.48229036]
[1730953109311,2.6366,189.51,189.47,6.48229036]
[1730953109904,3.28,189.55,189.4,3.28]
[1730953109905,3.28,189.55,189.49,6.48229036]
[1730953110212,6.48229036,189.54,189.49,6.48229036]
[1730953110607,2.6367,189.51,189.48,6.48229036]
[1730953111011,6.48229036,189.55,189.48,6.48229036]
[1730953111518,6.48229036,189.55,189.49,6.48229036]
[1730953111714,2.6364,189.53,189.49,6.48229036]
[1730953113414,2.6364,189.53,189.48,6.48229036]
[1730953113614,6.48229036,189.55,189.48,6.48229036]
[1730953113817,2.6364,189.53,189.48,6.48229036]
[1730953115727,2.6362,189.54,189.5,6.48229036]
[1730953116019,3.28,189.58,189.44,2.6375]
[1730953116207,6.48229036,189.53,189.47,6.48229036]
[1730953116411,2.6366,189.52,189.47,6.48229036]
[1730953117417,6.48229036,189.53,189.48,6.48229036]
[1730953117609,2.6366,189.51,189.48,6.48229036]
[1730953120017,3.28,189.58,189.5,6.48229036]
[1730953120223,2.6363,189.54,189.5,6.48229036]
[1730953120422,6.48229036,189.55,189.5,6.48229036]
[1730953121328,6.48229036,189.57,189.52,6.48229036]
[1730953121634,2.6361,189.55,189.52,6.48229036]
[1730953126555,2.6359,189.57,189.53,6.48229036]
[1730953126757,2.3956,189.6,189.55,6.48229036]
[1730953127659,2.6358,189.58,189.55,6.48229036]
[1730953128560,2.6358,189.57,189.55,6.48229036]
[1730953128857,8.87789036,189.6,189.54,6.48229036]
[1730953129060,2.636,189.56,189.54,6.48229036]
[1730953129861,2.636,189.56,189.53,6.48229036]
[1730953130365,6.48229036,189.58,189.53,6.48229036]
[1730953130566,6.48229036,189.58,189.51,6.48229036]
[1730953131157,2.6361,189.55,189.51,6.48229036]
[1730953131513,6.48229036,189.57,189.51,6.48229036]
[1730953132269,2.6362,189.55,189.51,6.48229036]
[1730953132475,6.48229036,189.56,189.51,6.48229036]
[1730953132687,6.48229036,189.56,189.49,6.48229036]
[1730953132861,6.48229036,189.58,189.51,6.48229036]
[1730953133067,6.48229036,189.56,189.51,6.48229036]
[1730953133367,2.6362,189.54,189.51,6.48229036]
[1730953133954,6.48229036,189.56,189.51,6.48229036]
[1730953134767,2.6364,189.53,189.51,6.48229036]
[1730953134965,6.48229036,189.56,189.51,6.48229036]
[1730953135168,6.48229036,189.56,189.49,6.48229036]
[1730953135578,2.3956,189.6,189.4,0.4494]
[1730953135579,6.48229036,189.52,189.46,6.48229036]
[1730953136161,2.6369,189.49,189.44,2.6375]
[1730953136473,2.6369,189.49,189.45,6.48229036]
[1730953139778,2.6369,189.49,189.47,6.48229036]
[1730953142455,2.6365,189.53,189.48,2.637]
[1730953142653,2.6365,189.53,189.51,6.48229036]
[1730953144738,3.26,189.58,189.51,6.48229036]
[1730953144940,9.74229036,189.58,189.52,6.48229036]
[1730953145145,6.48229036,189.58,189.52,6.48229036]
[1730953145332,6.48229036,189.58,189.48,3.26]
[1730953145640,6.48229036,189.58,189.52,6.48229036]
[1730953146738,2.6359,189.56,189.52,6.48229036]
[1730953146945,5.6556,189.6,189.52,6.48229036]
[1730953147135,6.48229036,189.59,189.52,6.48229036]
[1730953147335,6.48229036,189.59,189.52,9.11879036]
[1730953147541,2.3956,189.6,189.53,6.48229036]
[1730953147741,9.11809036,189.58,189.54,6.48229036]
[1730953147932,8.87789036,189.6,189.54,6.48229036]
[1730953148334,2.6357,189.58,189.54,6.48229036]
[1730953150038,5.031,189.6,189.54,9.11839036]
[1730953150346,2.3956,189.6,189.56,6.48229036]
[1730953150751,5.031,189.6,189.56,6.48229036]
[1730953152453,2.6355,189.59,189.56,6.48229036]
[1730953153745,2.6359,189.57,189.53,2.6363]
[1730953153952,2.6359,189.57,189.55,6.48229036]
[1730953154145,2.3956,189.6,189.55,6.48229036]
[1730953154450,2.6357,189.58,189.55,6.48229036]
[1730953157343,2.636,189.56,189.51,6.48229036]
[1730953157552,6.48229036,189.57,189.51,6.48229036]
[1730953158253,2.6362,189.54,189.51,6.48229036]
[1730953158656,2.6362,189.54,189.52,6.48229036]
[1730953162754,2.6363,189.54,189.49,2.6368]
[1730953162955,6.48229036,189.56,189.5,6.48229036]
[1730953164457,2.6362,189.55,189.5,6.48229036]
[1730953164665,6.48229036,189.56,189.5,6.48229036]
[1730953165148,2.6363,189.54,189.5,9.11899036]
[1730953165546,2.6363,189.54,189.5,2.6367]
[1730953165745,2.6364,189.53,189.49,2.6368]
[1730953165955,2.6364,189.53,189.5,6.48229036]
[1730953166553,2.6364,189.53,189.5,9.11899036]
[1730953166861,6.48229036,189.57,189.5,6.48229036]
[1730953167054,6.48229036,189.57,189.5,9.11899036]
[1730953167250,6.48229036,189.57,189.52,6.48229036]
[1730953167953,2.636,189.56,189.52,6.48229036]
[1730953168158,6.48229036,189.57,189.52,6.48229036]
[1730953169854,2.6362,189.54,189.52,6.48229036]
[1730953170157,2.6362,189.54,189.5,2.6367]
[1730953170358,2.6362,189.54,189.51,6.48229036]
[1730953171065,2.6362,189.54,189.5,6.48229036]
[1730953171360,2.3956,189.6,189.53,6.48229036]
[1730953171752,6.48229036,189.59,189.53,6.48229036]
[1730953172054,2.3956,189.6,189.55,6.48229036]
[1730953172555,2.3956,189.6,189.48,5.89440277]
[1730953172556,6.48229036,189.59,189.48,5.89440277]
[1730953172761,6.48229036,189.59,189.53,6.48229036]
[1730953172957,2.6357,189.58,189.53,6.48229036]
[1730953173157,2.6357,189.58,189.48,5.89440277]
[1730953173358,2.6357,189.58,189.53,6.48229036]
[1730953174561,2.6357,189.58,189.55,6.48229036]
[1730953177269,2.3956,189.6,189.55,6.48229036]
[1730953177469,2.6355,189.59,189.55,6.48229036]
[1730953177667,2.3956,189.6,189.55,6.48229036]
[1730953178867,2.6357,189.58,189.55,6.48229036]
[1730953185568,2.6358,189.57,189.55,6.48229036]
[1730953185777,2.3956,189.6,189.55,6.48229036]
[1730953185963,2.5013,189.65,189.58,6.48229036]
[1730953186262,6.48229036,189.64,189.54,3.26]
[1730953186469,6.48229036,189.64,189.57,6.48229036]
[1730953186665,6.48229036,189.64,189.54,3.26]
[1730953186863,6.48229036,189.62,189.57,6.48229036]
[1730953187779,2.6355,189.6,189.57,6.48229036]
[1730953189473,6.48229036,189.62,189.57,6.48229036]
[1730953189669,2.6355,189.59,189.57,6.48229036]
[1730953191581,6.48229036,189.64,189.57,6.48229036]
[1730953191777,6.48229036,189.64,189.59,6.48229036]
[1730953192277,2.6353,189.61,189.59,6.48229036]
[1730953193869,2.6351,189.62,189.59,6.48229036]
[1730953194070,2.6351,189.62,189.57,2.6357]
[1730953194271,6.48229036,189.64,189.59,6.48229036]
[1730953194674,2.635,189.63,189.59,6.48229036]
[1730953194970,6.48229036,189.64,189.59,6.48229036]
[1730953195283,2.6352,189.62,189.59,6.48229036]
[1730953196077,6.48229036,189.64,189.59,6.48229036]
[1730953196680,2.6352,189.62,189.59,6.48229036]
[1730953196874,2.6352,189.62,189.57,2.6358]
[1730953197294,2.6352,189.62,189.59,6.48229036]
[1730953198790,2.6352,189.62,189.58,6.48229036]
[1730953199479,6.48229036,189.64,189.58,6.48229036]
[1730953200085,6.48229036,189.64,189.57,2.6358]
[1730953200296,2.6352,189.61,189.59,6.48229036]
[1730953200482,2.5013,189.65,189.6,6.48229036]
[1730953200884,2.6352,189.61,189.6,6.48229036]
[1730953201081,2.6352,189.61,189.59,6.48229036]
[1730953201882,2.6357,189.58,189.54,6.48229036]
[1730953202094,6.48229036,189.59,189.54,6.48229036]
[1730953202582,2.6359,189.57,189.54,6.48229036]
[1730953202980,2.636,189.56,189.54,6.48229036]
[1730953203377,6.48229036,189.57,189.5,2.6366]
[1730953203583,1.2326,189.64,189.48,3.24]
[1730953203584,6.48229036,189.56,189.48,3.24]
[1730953203786,2.549,189.58,189.49,6.48229036]
[1730953203982,6.48229036,189.54,189.49,6.48229036]
[1730953204582,6.48229036,189.55,189.49,6.48229036]
[1730953205494,2.6365,189.52,189.49,6.48229036]
[1730953205885,2.6365,189.52,189.51,6.48229036]
[1730953206187,2.6365,189.52,189.48,3.24]
[1730953206490,2.6365,189.52,189.49,6.48229036]
[1730953209487,2.6364,189.53,189.5,6.48229036]
[1730953210397,1.2673,189.57,189.52,6.48229036]
[1730953210584,2.6362,189.55,189.52,6.48229036]
[1730953211481,2.6362,189.55,189.5,2.6367]
[1730953211689,2.6362,189.54,189.52,6.48229036]
[1730953214193,2.549,189.58,189.52,9.11879036]
[1730953214390,2.549,189.58,189.55,6.48229036]
[1730953214784,2.6359,189.57,189.55,6.48229036]
[1730953216190,1.1945,189.66,189.56,9.72229036]
[1730953216393,1.1945,189.66,189.62,6.48229036]
[1730953216590,2.5001,189.67,189.64,6.48229036]
[1730953216789,1.1913,189.67,189.66,6.48229036]
[1730953217085,6.22841869,189.71,189.66,6.48229036]
[1730953217295,8.72851869,189.73,189.66,6.48229036]
[1730953217493,8.72851869,189.73,189.62,3.24]
[1730953217494,2.5001,189.73,189.7,6.48229036]
[1730953217895,2.5001,189.73,189.68,3.24]
[1730953218095,2.5001,189.73,189.69,6.48229036]
[1730953219193,15.8,189.89,189.71,6.48229036]
[1730953219387,6.48229036,189.8,189.73,6.48229036]
[1730953219690,6.48229036,189.78,189.68,3.24]
[1730953219897,2.6332,189.76,189.7,2.6339]
[1730953220098,2.6332,189.76,189.68,3.24]
[1730953220295,6.48229036,189.78,189.72,6.48229036]
[1730953220494,2.6334,189.75,189.72,6.48229036]
[1730953221891,2.6329,189.78,189.74,6.48229036]
[1730953222194,2.6329,189.78,189.76,6.48229036]
[1730953223995,2.6332,189.76,189.74,6.48229036]
[1730953224697,1.2335,189.81,189.71,3.24]
[1730953224698,2.6333,189.75,189.71,3.24]
[1730953224899,6.48229036,189.78,189.71,3.24]
[1730953225095,6.48229036,189.78,189.7,6.48229036]
[1730953225295,2.6333,189.75,189.7,9.72229036]
[1730953225692,2.6333,189.75,189.7,6.48229036]
[1730953226402,6.48229036,189.78,189.72,6.48229036]
[1730953227007,1.2335,189.81,189.74,6.48229036]
[1730953227204,6.48229036,189.8,189.74,6.48229036]
[1730953227397,2.6331,189.77,189.74,6.48229036]
[1730953228406,2.6332,189.76,189.74,6.48229036]
[1730953228700,6.48229036,189.8,189.74,6.48229036]
[1730953229001,2.6329,189.79,189.75,6.48229036]
[1730953229202,2.6329,189.79,189.73,2.6335]
[1730953229408,2.6329,189.79,189.76,6.48229036]
[1730953229608,2.6329,189.79,189.72,2.6337]
[1730953229803,2.6329,189.79,189.76,6.48229036]
[1730953230407,2.6329,189.78,189.74,6.48229036]
[1730953230705,2.63283079,189.89,189.77,6.48229036]
[1730953231001,6.48229036,189.85,189.79,6.48229036]
[1730953231207,10.20899036,189.87,189.81,6.48229036]
[1730953231604,2.6323,189.82,189.81,6.48229036]
[1730953232611,2.6322,189.84,189.81,6.48229036]
[1730953232807,2.6322,189.84,189.83,6.48229036]
[1730953234010,3.7267,189.87,189.75,3.24]
[1730953234209,3.24,189.92,189.8,6.48229036]
[1730953234412,6.48229036,189.9,189.84,6.48229036]
[1730953235705,2.632,189.85,189.84,6.48229036]
[1730953236409,2.6322,189.83,189.77,2.633]
[1730953236716,2.6322,189.83,189.82,6.48229036]
[1730953241520,2.632,189.85,189.82,6.48229036]
[1730953241709,2.5113,189.93,189.84,6.48229036]
[1730953242010,8.99359036,189.93,189.87,6.48229036]
[1730953242414,2.6314,189.89,189.87,6.48229036]
[1730953242715,8.99359036,189.93,189.87,6.48229036]
[1730953242903,2.6315,189.88,189.87,6.48229036]
[1730953243107,8.99359036,189.93,189.87,6.48229036]
[1730953243304,8.99359036,189.93,189.88,6.48229036]
[1730953244319,2.6313,189.89,189.88,6.48229036]
[1730953244614,2.5113,189.93,189.88,6.48229036]
[1730953244807,2.5113,189.93,189.91,6.48229036]
[1730953245606,1.2936,189.99,189.91,6.48229036]
[1730953245812,6.48229036,189.97,189.92,6.48229036]
[1730953247118,2.6308,189.93,189.91,6.48229036]
[1730953249219,2.6309,189.92,189.91,6.48229036]
[1730953249418,6.48229036,189.97,189.91,6.48229036]
[1730953250720,6.48229036,189.97,189.88,3.22]
[1730953250721,6.48229036,189.95,189.88,3.22]
[1730953250925,6.48229036,189.95,189.88,9.70229036]
[1730953251613,6.48229036,189.95,189.88,3.22]
[1730953251814,2.5233,189.99,189.89,6.48229036]
[1730953252016,2.6312,189.9,189.89,6.48229036]
[1730953253617,2.6312,189.9,189.88,3.22]
[1730953253825,2.6312,189.9,189.87,3.22]
[1730953254128,6.48229036,189.94,189.88,6.48229036]
[1730953254423,6.48229036,189.94,189.87,3.22]
[1730953254424,2.6313,189.89,189.87,3.22]
[1730953255516,6.48229036,189.94,189.87,3.22]
[1730953255517,2.6315,189.88,189.87,3.22]
[1730953255717,2.6315,189.88,189.87,9.70229036]
[1730953257826,2.5233,189.99,189.78,0.4458]
[1730953257827,2.6317,189.87,189.85,9.70229036]
[1730953258326,2.6317,189.87,189.85,6.48229036]
[1730953259030,6.48229036,189.92,189.85,6.48229036]